bitfinex/quotes_BTCUSD_20251117
["timestamp","ask_amount","ask_price","bid_price","bid_amount"]
[1763356797939,0.10380677,95222.0,95221.0,0.02466]
[1763356799558,0.01960677,95222.0,95221.0,0.02466]
[1763356800586,0.01960677,95222.0,95221.0,0.00847]
[1763356801782,0.01960677,95222.0,95221.0,0.02466]
[1763356804559,0.01960677,95228.0,95221.0,0.02466]
[1763356804758,0.01960677,95227.0,95221.0,0.02466]
[1763356804985,0.01960677,95226.0,95221.0,0.02466]
[1763356805190,0.01960677,95225.0,95221.0,0.02466]
[1763356805342,0.01960677,95224.0,95222.0,0.01695]
[1763356805545,0.0842,95223.0,95222.0,0.01695]
[1763356806048,0.0842,95224.0,95222.0,0.03314]
[1763356806229,0.0842,95223.0,95222.0,0.01695]
[1763356806428,0.00044337,95229.0,95223.0,0.01695]
[1763356806763,0.01966619,95228.0,95223.0,0.01695]
[1763356806968,0.01966619,95227.0,95223.0,0.01695]
[1763356807141,0.00044337,95229.0,95223.0,0.01695]
[1763356807660,0.00044337,95229.0,95228.0,0.01619]
[1763356808016,0.00044337,95229.0,95228.0,0.03314]
[1763356809200,0.00044337,95229.0,95221.0,0.00847]
[1763356809412,0.00044337,95229.0,95221.0,0.02542]
[1763356809588,0.00044337,95229.0,95228.0,0.01619]
[1763356810030,0.00044337,95229.0,95228.0,0.03314]
[1763356811910,0.00044337,95229.0,95228.0,0.08314]
[1763356812052,0.00023337,95229.0,95228.0,0.23244]
[1763356812474,0.00023337,95229.0,95228.0,0.33244]
[1763356813061,0.00023337,95229.0,95228.0,0.43244]
[1763356813305,0.00023337,95229.0,95228.0,0.43344]
[1763356814585,0.00023337,95229.0,95228.0,0.43444]
[1763356815590,0.08443337,95229.0,95228.0,0.43444]
[1763356815793,0.00023337,95229.0,95228.0,0.47785874]
[1763356815954,0.08443337,95229.0,95228.0,0.47785874]
[1763356828546,0.08443337,95229.0,95228.0,0.36749]
[1763356828746,0.00023337,95229.0,95228.0,0.26749]
[1763356829444,0.00023337,95229.0,95228.0,0.26649]
[1763356830085,0.00023337,95229.0,95228.0,0.11819]
[1763356830302,0.00023337,95229.0,95228.0,0.102]
[1763356833355,0.00023337,95229.0,95228.0,0.11721]
[1763356833776,0.00023337,95229.0,95228.0,0.102]
[1763356835482,0.08439337,95229.0,95228.0,0.102]
[1763356838339,0.00023337,95229.0,95228.0,0.102]
[1763356838544,0.00023337,95229.0,95228.0,0.002]
[1763356839166,0.00023337,95229.0,95228.0,0.001]
[1763356839344,0.00023337,95229.0,95221.0,0.00847]
[1763356843248,0.01213,95222.0,95208.0,0.1493]
[1763356843426,0.24532729,95218.0,95208.0,0.1493]
[1763356843829,0.24532729,95218.0,95217.0,0.00847]
[1763356844035,0.01213,95222.0,95217.0,0.00847]
[1763356845072,0.323,95226.0,95217.0,0.00847]
[1763356845607,0.323,95224.0,95217.0,0.00847]
[1763356847993,0.01648571,95224.0,95217.0,0.00847]
[1763356849318,0.01648571,95224.0,95223.0,0.01557]
[1763356850120,0.01648571,95224.0,95217.0,0.00847]
[1763356854354,0.04074571,95224.0,95217.0,0.00847]
[1763356855395,0.4914,95223.0,95217.0,0.00847]
[1763356857455,0.40614984,95223.0,95217.0,0.00847]
[1763356858697,0.32194984,95223.0,95217.0,0.00847]
[1763356860704,0.03158102,95228.0,95217.0,0.00847]
[1763356860705,0.03158102,95228.0,95222.0,0.01557]
[1763356860930,0.1635275,95232.0,95227.0,0.01557]
[1763356861136,0.1635275,95240.0,95218.0,0.11675931]
[1763356861137,0.323,95231.0,95228.0,0.01557]
[1763356862097,0.01695,95237.0,95228.0,0.03252]
[1763356862297,0.002,95239.0,95228.0,0.03252]
[1763356862298,0.002,95239.0,95228.0,0.08252]
[1763356862567,0.002,95239.0,95228.0,0.03252]
[1763356862951,0.325,95239.0,95228.0,0.03252]
[1763356864917,0.325,95239.0,95228.0,0.01557]
[1763356865259,0.325,95239.0,95228.0,0.03252]
[1763356865467,0.08443337,95229.0,95228.0,0.03252]
[1763356868393,0.00023337,95229.0,95228.0,0.03252]
[1763356871431,0.00023337,95229.0,95228.0,0.01557]
[1763356871634,0.00023337,95229.0,95217.0,0.00847]
[1763356871776,0.1635275,95227.0,95217.0,0.00847]
[1763356871985,0.1635275,95227.0,95217.0,0.02542]
[1763356872245,0.1635275,95227.0,95226.0,0.01557]
[1763356872377,0.00023337,95229.0,95226.0,0.01557]
[1763356875312,0.01671838,95229.0,95218.0,0.01695]
[1763356875537,0.0842,95228.0,95220.0,0.1]
[1763356877989,0.01671838,95229.0,95220.0,0.1]
[1763356879845,0.01671838,95229.0,95228.0,0.01653]
[1763356880326,0.01671838,95229.0,95228.0,0.03348]
[1763356881598,0.01671838,95229.0,95228.0,0.01653]
[1763356882856,0.01671838,95229.0,95228.0,0.001]
[1763356883020,0.05725838,95229.0,95228.0,0.001]
[1763356883463,0.03316838,95229.0,95228.0,0.001]
[1763356883618,0.05725838,95229.0,95228.0,0.001]
[1763356884071,0.09383167,95229.0,95201.0,0.00848]
[1763356884417,0.01238,95208.0,95202.0,0.1]
[1763356884633,0.02409,95207.0,95202.0,0.1]
[1763356884834,0.02883,95203.0,95192.0,0.00847]
[1763356884985,0.323,95201.0,95192.0,0.00847]
[1763356885585,0.33948883,95199.0,95192.0,0.00847]
[1763356885908,0.323,95199.0,95192.0,0.00847]
[1763356886689,0.32304653,95199.0,95192.0,0.00847]
[1763356887873,4.653e-05,95199.0,95198.0,0.01523]
[1763356888928,0.0165351,95199.0,95198.0,0.01523]
[1763356890404,0.0165351,95199.0,95198.0,0.01623]
[1763356892008,0.0165351,95199.0,95198.0,0.03318]
[1763356893386,0.0165351,95199.0,95198.0,0.01623]
[1763356893622,0.0165351,95199.0,95198.0,0.001]
[1763356894567,0.0453651,95199.0,95198.0,0.001]
[1763356894768,0.07692461,95199.0,95198.0,0.001]
[1763356895612,0.43151927,95199.0,95198.0,0.001]
[1763356895974,0.49448428,95199.0,95198.0,0.001]
[1763356896159,0.49448428,95199.0,95159.0,0.00847]
[1763356896160,0.36641874,95198.0,95159.0,0.00847]
[1763356896369,0.323,95168.0,95159.0,0.00847]
[1763356896997,0.40790325,95168.0,95159.0,0.00847]
[1763356897450,0.40794975,95168.0,95159.0,0.00847]
[1763356898148,0.02409,95167.0,95159.0,0.00847]
[1763356899022,0.02409,95167.0,95150.0,0.000618]
[1763356899225,0.323,95159.0,95150.0,0.000618]
[1763356899898,0.323,95159.0,95155.0,0.1]
[1763356900585,0.01238,95156.0,95155.0,0.1]
[1763356900796,0.02883,95156.0,95150.0,0.002618]
[1763356901123,0.02883,95156.0,95150.0,0.000618]
[1763356901327,0.01238,95156.0,95151.0,0.1]
[1763356901533,0.01238,95156.0,95155.0,0.001]
[1763356902403,0.02887591,95156.0,95155.0,0.001]
[1763356902614,0.02887591,95156.0,95155.0,0.002]
[1763356902761,0.02887591,95156.0,95150.0,0.000618]
[1763356903143,0.02887591,95156.0,95155.0,0.001]
[1763356903576,0.01649591,95156.0,95155.0,0.001]
[1763356903936,0.01649591,95156.0,95150.0,0.000618]
[1763356904089,0.01649591,95156.0,95151.0,0.1]
[1763356905426,0.08424,95155.0,95151.0,0.1]
[1763356905769,0.323,95154.0,95151.0,0.1]
[1763356905886,0.08424,95153.0,95151.0,0.1]
[1763356906083,0.323,95154.0,95151.0,0.1]
[1763356906318,0.323,95154.0,95151.0,0.101]
[1763356906718,0.01649591,95156.0,95151.0,0.1]
[1763356906928,0.01649591,95156.0,95151.0,0.102]
[1763356907329,0.01649591,95156.0,95151.0,0.1]
[1763356907724,0.01649591,95156.0,95155.0,0.1]
[1763356908582,0.01649591,95156.0,95155.0,0.11589]
[1763356908751,0.01649591,95156.0,95155.0,0.18284]
[1763356909320,0.01649591,95156.0,95155.0,0.18384]
[1763356909461,0.01649591,95156.0,95155.0,0.18284]
[1763356909871,0.01649591,95156.0,95155.0,0.18384]
[1763356910137,0.01649591,95156.0,95155.0,0.18284]
[1763356910310,0.01649591,95156.0,95155.0,0.20391]
[1763356910511,0.01649591,95156.0,95155.0,0.18484]
[1763356915373,0.01649591,95156.0,95155.0,0.13484]
[1763356915549,0.08424,95156.0,95155.0,0.11789]
[1763356915759,0.08424,95156.0,95155.0,0.102]
[1763356915931,0.01197,95159.0,95155.0,0.102]
[1763356916582,0.01197,95159.0,95155.0,0.101]
[1763356916892,0.02431,95158.0,95155.0,0.101]
[1763356917057,0.02431,95158.0,95155.0,0.102]
[1763356917478,0.01522,95156.0,95155.0,0.001]
[1763356917682,0.03474613,95156.0,95150.0,0.000618]
[1763356917888,0.035928,95157.0,95155.0,0.001]
[1763356918089,0.04671487,95156.0,95155.0,0.002]
[1763356918292,0.04671487,95156.0,95155.0,0.001]
[1763356918467,0.07102487,95156.0,95155.0,0.001]
[1763356918667,0.07102487,95156.0,95155.0,0.002]
[1763356918915,0.08752162,95156.0,95150.0,0.000618]
[1763356919110,0.01522,95151.0,95150.0,0.000618]
[1763356919314,0.03474487,95151.0,95150.0,0.000618]
[1763356919719,0.05905487,95151.0,95150.0,0.000618]
[1763356920121,0.06657876,95151.0,95150.0,0.000618]
[1763356920328,0.01952487,95151.0,95150.0,0.000618]
[1763356920529,0.01953821,95151.0,95150.0,0.000618]
[1763356920943,0.01953821,95151.0,95150.0,0.001618]
[1763356921967,0.01953821,95151.0,95150.0,0.000618]
[1763356922371,0.03603497,95151.0,95150.0,0.002618]
[1763356923256,0.03603497,95151.0,95150.0,0.018508]
[1763356923692,0.03603497,95151.0,95150.0,0.085458]
[1763356924110,0.01649676,95151.0,95150.0,0.035458]
[1763356924318,0.01649676,95151.0,95150.0,0.085458]
[1763356924838,4.65e-05,95168.0,95161.0,0.05]
[1763356925126,4.65e-05,95168.0,95167.0,0.02436]
[1763356925338,0.01964399,95168.0,95167.0,0.02436]
[1763356925546,0.42688399,95168.0,95167.0,0.04131]
[1763356926625,0.42688399,95168.0,95167.0,0.04231]
[1763356926829,0.42688399,95168.0,95167.0,0.02536]
[1763356927241,0.34264399,95168.0,95167.0,0.02536]
[1763356927440,0.34265005,95168.0,95167.0,0.02536]
[1763356927640,0.34265005,95168.0,95167.0,0.04231]
[1763356927885,0.34265005,95168.0,95167.0,0.09231]
[1763356927886,0.03614499,95168.0,95167.0,0.09231]
[1763356928627,0.03614499,95168.0,95167.0,0.04231]
[1763356929048,0.03614499,95168.0,95167.0,0.02536]
[1763356929249,0.03614499,95168.0,95167.0,0.04231]
[1763356930682,0.03614499,95168.0,95167.0,0.02536]
[1763356931903,0.03614499,95168.0,95167.0,0.00947]
[1763356932305,0.01654144,95168.0,95167.0,0.00947]
[1763356933521,0.05135019,95168.0,95167.0,0.001]
[1763356933725,0.08199221,95168.0,95167.0,0.001]
[1763356934145,0.11359379,95168.0,95167.0,0.001]
[1763356934298,0.11359379,95168.0,95150.0,0.000618]
[1763356934500,0.323,95159.0,95150.0,0.000618]
[1763356934702,0.01958875,95158.0,95150.0,0.000618]
[1763356934908,0.34258875,95157.0,95150.0,0.000618]
[1763356935155,0.01958875,95156.0,95150.0,0.000618]
[1763356935292,0.01958875,95155.0,95150.0,0.000618]
[1763356935493,0.323,95153.0,95150.0,0.000618]
[1763356936352,0.323,95153.0,95152.0,0.01665]
[1763356936562,0.08424,95154.0,95150.0,0.000618]
[1763356936764,0.01232,95156.0,95150.0,0.000618]
[1763356936969,0.01958638,95155.0,95150.0,0.000618]
[1763356937265,0.01232,95156.0,95150.0,0.000618]
[1763356937471,0.323,95154.0,95150.0,0.000618]
[1763356938118,0.33949648,95154.0,95150.0,0.000618]
[1763356938751,0.01649648,95154.0,95150.0,0.000618]
[1763356939775,0.01649648,95154.0,95153.0,0.01602]
[1763356940508,0.01649648,95154.0,95153.0,0.03297]
[1763356940685,0.01649648,95154.0,95153.0,0.01602]
[1763356941226,0.01649648,95154.0,95153.0,0.03297]
[1763356941658,0.01649648,95154.0,95153.0,0.01602]
[1763356942471,0.01649648,95154.0,95150.0,0.000618]
[1763356943617,0.04802195,95154.0,95150.0,0.000618]
[1763356943832,0.01649648,95154.0,95150.0,0.000618]
[1763356945509,0.40724,95153.0,95150.0,0.000618]
[1763356946908,0.01527,95151.0,95150.0,0.000618]
[1763356947272,0.05055,95151.0,95150.0,0.000618]
[1763356948323,0.02684,95151.0,95150.0,0.000618]
[1763356948504,0.01157,95151.0,95150.0,0.000618]
[1763356949124,0.01762043,95151.0,95150.0,0.000618]
[1763356949928,0.03289043,95151.0,95150.0,0.000618]
[1763356950127,0.05660043,95151.0,95150.0,0.000618]
[1763356951025,0.06732437,95151.0,95150.0,0.000618]
[1763356951254,0.05660043,95151.0,95150.0,0.000618]
[1763356952052,0.07617881,95151.0,95150.0,0.000618]
[1763356953223,0.07717881,95151.0,95150.0,0.000618]
[1763356953418,0.07617881,95151.0,95150.0,0.000618]
[1763356953835,0.07717881,95151.0,95150.0,0.000618]
[1763356954563,0.07817881,95151.0,95150.0,0.000618]
[1763356955272,0.05860043,95151.0,95150.0,0.000618]
[1763356955492,0.55016043,95151.0,95150.0,0.000618]
[1763356957612,0.38160043,95151.0,95150.0,0.000618]
[1763356961026,0.38635051,95151.0,95150.0,0.000618]
[1763356962115,0.40589157,95151.0,95150.0,0.000618]
[1763356964315,0.4223929,95151.0,95150.0,0.000618]
[1763356964507,0.40589157,95151.0,95150.0,0.000618]
[1763356965541,0.57445157,95151.0,95150.0,0.000618]
[1763356967856,0.49017157,95151.0,95150.0,0.000618]
[1763356968053,0.40589157,95151.0,95150.0,0.000618]
[1763356973410,0.39984114,95151.0,95150.0,0.000618]
[1763356973607,0.07684114,95151.0,95150.0,0.000618]
[1763356974703,0.07584114,95151.0,95150.0,0.000618]
[1763356975113,0.07684114,95151.0,95150.0,0.000618]
[1763356975345,0.07584114,95151.0,95150.0,0.000618]
[1763356975540,0.61929973,95151.0,95150.0,0.000618]
[1763356975756,0.61829973,95151.0,95150.0,0.000618]
[1763356975950,0.61929973,95151.0,95150.0,0.000618]
[1763356976834,0.53501973,95151.0,95150.0,0.000618]
[1763356977067,0.55756948,95151.0,95150.0,0.000618]
[1763356977268,0.50296523,95151.0,95150.0,0.000618]
[1763356977891,0.51946766,95151.0,95150.0,0.000618]
[1763356978086,0.52926113,95151.0,95150.0,0.000618]
[1763356978291,0.5127587,95151.0,95150.0,0.000618]
[1763356979081,0.55617744,95151.0,95150.0,0.000618]
[1763356981458,0.57268001,95151.0,95150.0,0.000618]
[1763356982125,0.57268001,95151.0,95140.0,0.00024785]
[1763356982126,0.37641873,95150.0,95140.0,0.00024785]
[1763356982336,0.37641873,95150.0,95130.0,0.0004]
[1763356982337,0.04341874,95140.0,95130.0,0.0004]
[1763356982535,0.04341874,95140.0,95110.0,0.0004]
[1763356982536,0.09980931,95121.0,95110.0,0.0004]
[1763356982712,0.4807913,95121.0,95110.0,0.0004]
[1763356982897,0.52637105,95121.0,95110.0,0.0004]
[1763356983099,0.53058751,95121.0,95110.0,0.0004]
[1763356983838,0.49805683,95121.0,95120.0,0.00061]
[1763356984675,0.49809902,95121.0,95120.0,0.00061]
[1763356984873,0.49909902,95121.0,95120.0,0.00061]
[1763356985447,0.66765902,95121.0,95120.0,0.00061]
[1763356985620,0.66865902,95121.0,95120.0,0.00061]
[1763356985818,0.73552492,95121.0,95120.0,0.00061]
[1763356986438,0.56696492,95121.0,95120.0,0.00061]
[1763356986618,0.50009902,95121.0,95120.0,0.00061]
[1763356988747,0.07628971,95121.0,95120.0,0.00061]
[1763356988944,0.07528971,95121.0,95120.0,0.00061]
[1763356989142,0.07528971,95121.0,95120.0,0.00116082]
[1763356990899,0.07628971,95121.0,95120.0,0.00116082]
[1763356991114,0.08491868,95121.0,95120.0,0.00116082]
[1763356991757,0.10142434,95121.0,95120.0,0.00116082]
[1763356991960,0.08491868,95121.0,95120.0,0.00116082]
[1763356993901,0.07728971,95121.0,95120.0,0.00116082]
[1763356994937,0.07628971,95121.0,95120.0,0.00116082]
[1763356995143,0.09179533,95121.0,95120.0,0.00116082]
[1763356995629,0.58335533,95121.0,95120.0,0.00116082]
[1763356996638,0.41479533,95121.0,95120.0,0.00116082]
[1763356996900,0.45627486,95121.0,95120.0,0.00116082]
[1763356997283,0.45727486,95121.0,95120.0,0.00116082]
[1763356997731,0.45827486,95121.0,95120.0,0.00116082]
[1763356998067,0.41679533,95121.0,95120.0,0.00116082]
[1763356998265,0.37734734,95121.0,95120.0,0.00116082]
[1763356998465,0.34572208,95121.0,95120.0,0.00116082]
[1763356998890,0.34472208,95121.0,95120.0,0.00116082]
[1763356999269,0.32721646,95121.0,95120.0,0.00116082]
[1763357000764,0.35340518,95121.0,95120.0,0.00116082]
[1763357001113,0.32721646,95121.0,95120.0,0.00116082]
[1763357002787,0.36797646,95121.0,95120.0,0.00116082]
[1763357003290,0.34305646,95121.0,95120.0,0.00116082]
[1763357004026,0.32721646,95121.0,95120.0,0.00116082]
[1763357004258,0.32721646,95121.0,95120.0,0.01632082]
[1763357004669,0.32721646,95121.0,95120.0,0.00116082]
[1763357005618,0.49577646,95121.0,95120.0,0.00116082]
[1763357009139,0.41149646,95121.0,95120.0,0.00116082]
[1763357009262,0.32721646,95121.0,95120.0,0.00116082]
[1763357009875,0.32165339,95121.0,95120.0,0.00116082]
[1763357010082,0.33860339,95121.0,95120.0,0.00116082]
[1763357010903,0.35444339,95121.0,95120.0,0.00116082]
[1763357011121,0.33860339,95121.0,95120.0,0.00116082]
[1763357012781,0.35510762,95121.0,95120.0,0.00116082]
[1763357013281,0.33860339,95121.0,95120.0,0.00116082]
[1763357014101,0.33860339,95121.0,95120.0,0.03327082]
[1763357014524,0.01695,95121.0,95120.0,0.03327082]
[1763357014723,0.3277657,95140.0,95120.0,0.03327082]
[1763357014959,0.3277657,95140.0,95139.0,0.00848]
[1763357015189,0.323,95140.0,95139.0,0.00848]
[1763357015572,0.52317097,95140.0,95139.0,0.00848]
[1763357016198,0.53967364,95140.0,95139.0,0.00848]
[1763357017261,0.53967364,95140.0,95120.0,0.00061]
[1763357017262,0.323,95139.0,95133.0,0.00848]
[1763357018266,0.01695,95138.0,95133.0,0.00848]
[1763357018726,0.0278,95134.0,95120.0,0.00061]
[1763357018924,0.3277657,95130.0,95120.0,0.00061]
[1763357019304,0.3277657,95130.0,95129.0,0.00848]
[1763357019512,0.01196,95134.0,95129.0,0.00848]
[1763357019955,0.02543,95133.0,95129.0,0.00848]
[1763357020160,0.02543,95133.0,95131.0,0.00024788]
[1763357020996,0.05806661,95132.0,95131.0,0.00024788]
[1763357021342,0.02543,95133.0,95131.0,0.00024788]
[1763357025398,0.08428,95132.0,95131.0,0.00024788]
[1763357025610,0.16856,95132.0,95131.0,0.00024788]
[1763357026018,0.17704,95132.0,95131.0,0.00024788]
[1763357026432,0.53864,95132.0,95131.0,0.00024788]
[1763357026652,0.60421088,95132.0,95131.0,0.00024788]
[1763357027445,0.41576,95132.0,95131.0,0.01543788]
[1763357027646,0.50004,95132.0,95131.0,0.00024788]
[1763357030040,0.5165428,95132.0,95131.0,0.00024788]
[1763357030204,0.3479828,95132.0,95131.0,0.03238788]
[1763357030411,0.3479828,95132.0,95131.0,0.01543788]
[1763357031733,0.3479828,95132.0,95131.0,0.00024788]
[1763357032953,0.3479828,95132.0,95131.0,0.01543788]
[1763357034817,0.3479828,95132.0,95131.0,0.00024788]
[1763357035432,0.5165428,95132.0,95131.0,0.00024788]
[1763357036640,0.56819708,95132.0,95131.0,0.00024788]
[1763357037034,0.5165428,95132.0,95131.0,0.00024788]
[1763357038413,0.3479828,95132.0,95131.0,0.00024788]
[1763357040615,0.3865828,95132.0,95131.0,0.00024788]
[1763357041330,0.3479828,95132.0,95131.0,0.00024788]
[1763357041546,0.3479828,95132.0,95131.0,0.00872788]
[1763357045405,0.4322628,95132.0,95131.0,0.00872788]
[1763357045613,0.5165428,95132.0,95131.0,0.00872788]
[1763357045814,0.3479828,95132.0,95131.0,0.00872788]
[1763357046036,0.4322628,95132.0,95131.0,0.00872788]
[1763357048409,0.3479828,95132.0,95131.0,0.04086788]
[1763357048761,0.0249828,95132.0,95131.0,0.04086788]
[1763357048991,0.0165028,95132.0,95131.0,0.09086788]
[1763357049419,0.0316089,95135.0,95134.0,0.05]
[1763357049831,0.0316089,95135.0,95134.0,0.08214]
[1763357050093,0.323,95143.0,95134.0,0.08214]
[1763357050298,0.323,95143.0,95142.0,0.01519]
[1763357050724,0.24580034,95150.0,95142.0,0.03214]
[1763357050906,0.01695,95143.0,95142.0,0.01695]
[1763357051142,0.01695,95143.0,95134.0,0.051]
[1763357051378,0.01695,95143.0,95131.0,0.00872788]
[1763357051379,0.01695,95143.0,95142.0,0.01519]
[1763357051596,0.323,95149.0,95142.0,0.01519]
[1763357051828,0.03160557,95148.0,95142.0,0.01619]
[1763357052039,0.03160557,95148.0,95142.0,0.01519]
[1763357052246,0.03160557,95148.0,95147.0,0.01519]
[1763357052793,0.04810658,95148.0,95147.0,0.01519]
[1763357053960,0.04810658,95148.0,95143.0,0.00848]
[1763357055437,0.49156,95147.0,95143.0,0.00848]
[1763357056145,0.01695,95146.0,95143.0,0.00848]
[1763357056776,0.01695,95146.0,95145.0,0.01653]
[1763357057677,0.01695,95146.0,95145.0,0.03348]
[1763357061031,0.01650101,95148.0,95145.0,0.03348]
[1763357061229,0.01650101,95148.0,95147.0,0.06591]
[1763357061652,0.01650101,95148.0,95147.0,0.03286]
[1763357061837,0.03160428,95153.0,95147.0,0.03286]
[1763357062040,0.03160428,95153.0,95152.0,0.01591]
[1763357062682,0.03160428,95153.0,95152.0,0.03286]
[1763357062881,0.323,95161.0,95152.0,0.03286]
[1763357063086,0.35460351,95161.0,95153.0,0.00847]
[1763357064443,0.35560351,95161.0,95153.0,0.00847]
[1763357065267,0.01649954,95160.0,95153.0,0.00847]
[1763357065465,0.49156,95159.0,95153.0,0.00847]
[1763357066036,0.33995,95158.0,95153.0,0.00847]
[1763357066468,0.33995,95158.0,95153.0,0.02542]
[1763357067115,0.01695,95158.0,95153.0,0.02542]
[1763357068679,0.01695,95158.0,95153.0,0.00847]
[1763357068882,0.01695,95158.0,95157.0,0.01591]
[1763357069857,0.01695,95158.0,95157.0,0.03286]
[1763357070242,0.01649954,95160.0,95157.0,0.03286]
[1763357070449,0.01649954,95160.0,95159.0,0.01591]
[1763357070859,0.01649954,95160.0,95159.0,0.03286]
[1763357071493,0.01749954,95160.0,95159.0,0.03286]
[1763357071705,0.01749954,95160.0,95153.0,0.00847]
[1763357072069,0.01695,95159.0,95153.0,0.00847]
[1763357075523,0.49156,95158.0,95153.0,0.00847]
[1763357075870,0.40728,95158.0,95153.0,0.00847]
[1763357076308,0.42423,95158.0,95153.0,0.00847]
[1763357078163,0.08428,95158.0,95153.0,0.00847]
[1763357078548,0.10123,95158.0,95153.0,0.00847]
[1763357078714,0.01695,95158.0,95153.0,0.00847]
[1763357082860,0.01695,95158.0,95157.0,0.01591]
[1763357083266,0.01695,95158.0,95157.0,0.03286]
[1763357084205,0.01649954,95160.0,95157.0,0.03286]
[1763357084495,0.01649954,95160.0,95159.0,0.01591]
[1763357084991,0.01649954,95160.0,95159.0,0.03286]
[1763357085497,0.50797954,95160.0,95159.0,0.03286]
[1763357086056,0.50797954,95160.0,95159.0,0.03386]
[1763357086981,0.01649954,95160.0,95159.0,0.03386]
[1763357087337,0.01649954,95160.0,95159.0,0.08386]
[1763357087733,0.49160068,95170.0,95159.0,0.08386]
[1763357087914,0.49160068,95170.0,95169.0,0.02453]
[1763357088122,0.03159892,95172.0,95169.0,0.02453]
[1763357088305,0.03159892,95172.0,95171.0,0.01605]
[1763357088507,0.56880034,95179.0,95171.0,0.033]
[1763357088901,0.01695,95178.0,95171.0,0.033]
[1763357089360,0.01695,95178.0,95177.0,0.01605]
[1763357089914,0.001,95179.0,95177.0,0.033]
[1763357090118,0.001,95179.0,95178.0,0.01605]
[1763357090320,0.001,95179.0,95178.0,0.033]
[1763357090524,0.001,95179.0,95178.0,0.083]
[1763357091161,0.03159353,95187.0,95181.0,0.05]
[1763357091371,0.33949584,95189.0,95169.0,0.00848]
[1763357091372,0.33949584,95189.0,95186.0,0.02452]
[1763357091577,0.01649584,95189.0,95188.0,0.01605]
[1763357092038,0.01649584,95189.0,95188.0,0.033]
[1763357092418,0.01649584,95189.0,95188.0,0.03321]
[1763357095007,0.01649584,95189.0,95188.0,0.03421]
[1763357095411,0.10073584,95189.0,95188.0,0.03421]
[1763357096089,0.10073584,95189.0,95188.0,0.01726]
[1763357096306,0.10073584,95189.0,95188.0,0.00121]
[1763357096948,0.11701584,95189.0,95188.0,0.00121]
[1763357097410,0.10073584,95189.0,95188.0,0.00121]
[1763357097607,0.10073584,95189.0,95188.0,0.00021]
[1763357098974,0.01649584,95189.0,95188.0,0.00021]
[1763357099632,0.03344584,95189.0,95188.0,0.00021]
[1763357104588,0.03344584,95189.0,95188.0,0.01626]
[1763357104802,0.03344584,95189.0,95188.0,0.03321]
[1763357105678,0.10073584,95189.0,95188.0,0.03321]
[1763357106547,0.01649584,95189.0,95188.0,0.03321]
[1763357107739,0.01649584,95189.0,95188.0,0.03421]
[1763357109981,0.01649584,95189.0,95188.0,0.08421]
[1763357110205,0.01649584,95189.0,95188.0,0.18421]
[1763357110595,0.002,95199.0,95198.0,0.05]
[1763357110794,0.002,95199.0,95198.0,0.06605]
[1763357110937,0.002,95199.0,95198.0,0.083]
[1763357111330,0.002,95199.0,95198.0,0.183]
[1763357111930,0.002,95199.0,95198.0,0.184]
[1763357112937,0.002,95199.0,95198.0,0.185]
[1763357114125,0.002,95199.0,95198.0,0.3343]
[1763357115506,0.0862,95199.0,95198.0,0.3343]
[1763357122351,0.0842,95220.0,95214.0,0.05]
[1763357122599,0.0842,95220.0,95218.0,0.05]
[1763357122600,0.0842,95219.0,95218.0,0.05]
[1763357123026,0.0842,95219.0,95218.0,0.08253]
[1763357123223,0.0842,95219.0,95218.0,0.18253]
[1763357123429,0.0842,95219.0,95218.0,0.08253]
[1763357123703,0.0842,95219.0,95218.0,0.08353]
[1763357124015,0.08464324,95219.0,95218.0,0.08353]
[1763357124434,0.08464324,95219.0,95218.0,0.08253]
[1763357124825,0.08464324,95219.0,95218.0,0.08353]
[1763357125050,0.16389629,95230.0,95218.0,0.08353]
[1763357125051,0.0139292,95226.0,95218.0,0.03353]
[1763357125187,0.01406209,95226.0,95225.0,0.17068881]
[1763357125391,0.08433289,95226.0,95225.0,0.17068881]
[1763357125615,0.08433289,95226.0,95225.0,0.18763881]
[1763357127687,0.08433289,95226.0,95225.0,0.18863881]
[1763357127927,0.08433289,95226.0,95225.0,0.18963881]
[1763357129724,0.08433289,95226.0,95225.0,0.23305755]
[1763357131629,0.08433289,95226.0,95225.0,0.38235755]
[1763357139016,0.08433289,95226.0,95225.0,0.38186755]
[1763357140138,0.09278618,95226.0,95225.0,0.19471874]
[1763357140341,0.00858618,95226.0,95225.0,0.002]
[1763357140537,0.00858618,95226.0,95225.0,0.01758]
[1763357140538,0.05123913,95226.0,95225.0,0.01758]
[1763357140965,0.05123913,95226.0,95225.0,0.01658]
[1763357141307,0.05123913,95226.0,95225.0,0.001]
[1763357142018,0.05123913,95226.0,95217.0,0.00847]
[1763357142249,0.01952678,95225.0,95217.0,0.00847]
[1763357142454,0.01952678,95224.0,95217.0,0.00847]
[1763357142626,0.01952678,95223.0,95217.0,0.00847]
[1763357142801,0.01952678,95222.0,95217.0,0.00847]
[1763357143010,0.01952678,95221.0,95217.0,0.00847]
[1763357143184,0.01952678,95220.0,95217.0,0.00847]
[1763357143376,0.01952678,95219.0,95217.0,0.00847]
[1763357143577,0.01952678,95218.0,95217.0,0.00847]
[1763357143995,0.01952678,95218.0,95217.0,0.02405]
[1763357144207,0.03158062,95222.0,95217.0,0.02405]
[1763357144416,0.01953312,95221.0,95217.0,0.00847]
[1763357144608,0.01953312,95220.0,95217.0,0.00847]
[1763357144813,0.03158062,95222.0,95217.0,0.00847]
[1763357144814,0.03986094,95219.0,95217.0,0.00847]
[1763357145009,0.03508312,95218.0,95200.0,0.01646]
[1763357145213,0.34253312,95217.0,95200.0,0.01646]
[1763357145423,0.323,95215.0,95195.0,0.10510881]
[1763357145630,0.49108887,95205.0,95202.0,0.00848]
[1763357145852,0.01201,95209.0,95202.0,0.00848]
[1763357146031,0.01952658,95208.0,95202.0,0.00848]
[1763357146713,0.01952658,95207.0,95202.0,0.00848]
[1763357146912,0.01952658,95206.0,95202.0,0.00848]
[1763357147115,0.01952658,95205.0,95202.0,0.00848]